[Event "Early-Titled-Tuesday-Blitz-October-10-2023"]
[Site "Chess.com"]
[Date "2023.10.10"]
[Round "5"]
[White "viktorgen2021"]
[Black "kritipatel"]
[Result "1-0"]
[WhiteElo "2377"]
[BlackElo "2124"]
[TimeControl "180+1"]
[EndTime "8:55:50 PDT"]
[Termination "viktorgen2021 won by checkmate"]

1. d4 {[%clk 0:02:54.1]} 1... d5 {[%clk 0:03:00.1]} 2. c4 {[%clk 0:02:51.4]}
2... e6 {[%clk 0:03:00.2]} 3. Nf3 {[%clk 0:02:52]} 3... Nf6 {[%clk 0:03:00.7]}
4. g3 {[%clk 0:02:52.7]} 4... Be7 {[%clk 0:03:00.6]} 5. Bg2 {[%clk 0:02:53.6]}
5... O-O {[%clk 0:03:01.3]} 6. O-O {[%clk 0:02:54.5]} 6... dxc4 {[%clk 0:03:02]}
7. Qa4 {[%clk 0:02:54]} 7... a6 {[%clk 0:03:01.1]} 8. Qxc4 {[%clk 0:02:53.7]}
8... b5 {[%clk 0:03:00.5]} 9. Qc2 {[%clk 0:02:54.2]} 9... Bb7 {[%clk 0:03:00.9]}
10. Bf4 {[%clk 0:02:54.8]} 10... Nc6 {[%clk 0:02:57.6]} 11. Rd1 {[%clk 0:02:52]}
11... Nb4 {[%clk 0:02:56.1]} 12. Qd2 {[%clk 0:02:49.8]} 12... Rc8 {[%clk
0:02:54.8]} 13. Nc3 {[%clk 0:02:49]} 13... Nbd5 {[%clk 0:02:52.7]} 14. Ne5
{[%clk 0:02:45.2]} 14... c5 {[%clk 0:02:43.6]} 15. dxc5 {[%clk 0:02:41.4]} 15...
Bxc5 {[%clk 0:02:41.3]} 16. Nxd5 {[%clk 0:02:40.7]} 16... Bxd5 {[%clk
0:02:40.5]} 17. Bxd5 {[%clk 0:02:38.1]} 17... Nxd5 {[%clk 0:02:38.4]} 18. Nd3
{[%clk 0:02:36.7]} 18... Nxf4 {[%clk 0:02:34.8]} 19. Qxf4 {[%clk 0:02:37.6]}
19... Qb6 {[%clk 0:02:30.6]} 20. Rac1 {[%clk 0:02:32.6]} 20... Bd6 {[%clk
0:02:26.2]} 21. Qe4 {[%clk 0:02:29.3]} 21... h6 {[%clk 0:02:15.6]} 22. Ne1
{[%clk 0:02:14.4]} 22... Bc5 {[%clk 0:02:06.7]} 23. e3 {[%clk 0:02:09.3]} 23...
Rc7 {[%clk 0:02:04.1]} 24. b4 {[%clk 0:02:04.7]} 24... Be7 {[%clk 0:01:59.9]}
25. Rxc7 {[%clk 0:01:59.1]} 25... Qxc7 {[%clk 0:02:00.8]} 26. Nd3 {[%clk
0:01:56.2]} 26... Qc2 {[%clk 0:01:55.3]} 27. Rc1 {[%clk 0:01:52.6]} 27... Qxa2
{[%clk 0:01:52.9]} 28. Ne5 {[%clk 0:01:48.3]} 28... Qb2 {[%clk 0:01:47.3]} 29.
Rb1 {[%clk 0:01:46.1]} 29... Qd2 {[%clk 0:01:39.8]} 30. Qf3 {[%clk 0:01:24.4]}
30... Bxb4 {[%clk 0:01:34.6]} 31. Nc6 {[%clk 0:00:57.2]} 31... Bc5 {[%clk
0:01:21.8]} 32. Rd1 {[%clk 0:00:56.9]} 32... Qc2 {[%clk 0:01:13.6]} 33. Rd7
{[%clk 0:00:56.2]} 33... b4 {[%clk 0:01:10.1]} 34. Ne5 {[%clk 0:00:55.9]} 34...
Qf5 {[%clk 0:00:56.5]} 35. Qxf5 {[%clk 0:00:54.8]} 35... exf5 {[%clk 0:00:56.5]}
36. Nd3 {[%clk 0:00:53.9]} 36... Rc8 {[%clk 0:00:51.6]} 37. Rb7 {[%clk
0:00:53.9]} 37... a5 {[%clk 0:00:49.3]} 38. Rb5 {[%clk 0:00:48.9]} 38... Be7
{[%clk 0:00:23.9]} 39. Rxa5 {[%clk 0:00:49]} 39... Rb8 {[%clk 0:00:21]} 40. Ra1
{[%clk 0:00:43.4]} 40... b3 {[%clk 0:00:19.8]} 41. Rb1 {[%clk 0:00:42.9]} 41...
Bf6 {[%clk 0:00:17.9]} 42. Kf1 {[%clk 0:00:39.2]} 42... b2 {[%clk 0:00:17.5]}
43. Ke2 {[%clk 0:00:39.3]} 43... Rb3 {[%clk 0:00:17.9]} 44. Kd2 {[%clk
0:00:37.3]} 44... Kf8 {[%clk 0:00:17.2]} 45. Nc5 {[%clk 0:00:33.6]} 45... Ra3
{[%clk 0:00:16.5]} 46. Nd7+ {[%clk 0:00:31.1]} 46... Ke7 {[%clk 0:00:16.1]} 47.
Nxf6 {[%clk 0:00:32]} 47... Kxf6 {[%clk 0:00:16.2]} 48. Rxb2 {[%clk 0:00:32.9]}
48... Ra4 {[%clk 0:00:16.4]} 49. Kd3 {[%clk 0:00:32.7]} 49... Ra3+ {[%clk
0:00:16.7]} 50. Ke2 {[%clk 0:00:33.3]} 50... Ra4 {[%clk 0:00:17.2]} 51. Kf3
{[%clk 0:00:33.7]} 51... Ra6 {[%clk 0:00:16.9]} 52. Rb5 {[%clk 0:00:33.9]} 52...
Kg6 {[%clk 0:00:16.2]} 53. h3 {[%clk 0:00:34.2]} 53... Re6 {[%clk 0:00:16.8]}
54. Kf4 {[%clk 0:00:33.8]} 54... Re4+ {[%clk 0:00:16.4]} 55. Kf3 {[%clk
0:00:34.5]} 55... Re6 {[%clk 0:00:17]} 56. g4 {[%clk 0:00:33.5]} 56... fxg4+
{[%clk 0:00:16.8]} 57. hxg4 {[%clk 0:00:34.4]} 57... Rf6+ {[%clk 0:00:17.2]} 58.
Kg3 {[%clk 0:00:34.7]} 58... Re6 {[%clk 0:00:17.5]} 59. Ra5 {[%clk 0:00:33.9]}
59... Rf6 {[%clk 0:00:17.4]} 60. f4 {[%clk 0:00:34.2]} 60... Kh7 {[%clk
0:00:17.4]} 61. e4 {[%clk 0:00:34.1]} 61... Rc6 {[%clk 0:00:17.2]} 62. Ra7
{[%clk 0:00:33.6]} 62... Rc3+ {[%clk 0:00:17.7]} 63. Kh4 {[%clk 0:00:33.4]}
63... Rc4 {[%clk 0:00:17.5]} 64. Re7 {[%clk 0:00:31.1]} 64... Kg6 {[%clk
0:00:17.1]} 65. f5+ {[%clk 0:00:23.4]} 65... Kf6 {[%clk 0:00:17.5]} 66. Re8
{[%clk 0:00:24.2]} 66... Rc5 {[%clk 0:00:17.7]} 67. Rb8 {[%clk 0:00:17.9]} 67...
Re5 {[%clk 0:00:17.6]} 68. Rb4 {[%clk 0:00:17.4]} 68... Re7 {[%clk 0:00:17.3]}
69. Kg3 {[%clk 0:00:17.9]} 69... Ke5 {[%clk 0:00:17.8]} 70. Kf3 {[%clk
0:00:15.3]} 70... Rd7 {[%clk 0:00:18.2]} 71. Rb5+ {[%clk 0:00:15.7]} 71... Kf6
{[%clk 0:00:18.4]} 72. Kf4 {[%clk 0:00:16]} 72... Rd4 {[%clk 0:00:18.1]} 73.
Rb6+ {[%clk 0:00:15.6]} 73... Ke7 {[%clk 0:00:18.7]} 74. Ke5 {[%clk 0:00:16.2]}
74... Ra4 {[%clk 0:00:18.6]} 75. Rb7+ {[%clk 0:00:16.4]} 75... Kf8 {[%clk
0:00:19]} 76. Kf4 {[%clk 0:00:15.9]} 76... Ra5 {[%clk 0:00:18.7]} 77. g5 {[%clk
0:00:15.1]} 77... Ra4 {[%clk 0:00:19.2]} 78. gxh6 {[%clk 0:00:12.2]} 78... gxh6
{[%clk 0:00:19.8]} 79. f6 {[%clk 0:00:12.9]} 79... Ra5 {[%clk 0:00:17.8]} 80.
Rb8# {[%clk 0:00:12.9]} 1-0

[Event "Early-Titled-Tuesday-Blitz-October-10-2023"]
[Site "Chess.com"]
[Date "2023.10.10"]
[Round "5"]
[White "unclear15"]
[Black "whiteglovethief"]
[Result "1/2-1/2"]
[WhiteElo "2439"]
[BlackElo "2547"]
[TimeControl "180+1"]
[EndTime "8:55:51 PDT"]
[Termination "Game drawn - insufficient material"]

1. e4 {[%clk 0:03:00.9]} 1... e6 {[%clk 0:03:00.4]} 2. Nf3 {[%clk 0:02:57.6]}
2... d5 {[%clk 0:03:01.3]} 3. Nc3 {[%clk 0:02:55.2]} 3... d4 {[%clk 0:03:00.9]}
4. Ne2 {[%clk 0:02:55.1]} 4... c5 {[%clk 0:03:01.4]} 5. c3 {[%clk 0:02:53.6]}
5... Nf6 {[%clk 0:03:01.6]} 6. Ng3 {[%clk 0:02:52.8]} 6... Nc6 {[%clk
0:02:59.6]} 7. Bd3 {[%clk 0:02:49.7]} 7... Be7 {[%clk 0:02:55.5]} 8. O-O {[%clk
0:02:45.8]} 8... O-O {[%clk 0:02:55.1]} 9. e5 {[%clk 0:02:45]} 9... Nd7 {[%clk
0:02:55.2]} 10. Re1 {[%clk 0:02:43.8]} 10... Qc7 {[%clk 0:02:54.6]} 11. Qe2
{[%clk 0:02:42.2]} 11... Rd8 {[%clk 0:02:52.1]} 12. Qe4 {[%clk 0:02:26.9]} 12...
Nf8 {[%clk 0:02:47.9]} 13. Bc2 {[%clk 0:02:17.3]} 13... b5 {[%clk 0:02:44]} 14.
a4 {[%clk 0:02:12.7]} 14... Bb7 {[%clk 0:02:41.4]} 15. Qf4 {[%clk 0:02:11.8]}
15... a6 {[%clk 0:02:35.7]} 16. Nh5 {[%clk 0:02:07]} 16... Ng6 {[%clk
0:02:33.2]} 17. Qg3 {[%clk 0:02:03.3]} 17... d3 {[%clk 0:02:28.7]} 18. Bd1
{[%clk 0:02:02.5]} 18... c4 {[%clk 0:02:28.3]} 19. h4 {[%clk 0:01:56.5]} 19...
Ncxe5 {[%clk 0:01:45.8]} 20. Nxe5 {[%clk 0:01:52.9]} 20... Bxh4 {[%clk
0:01:46.4]} 21. Qg4 {[%clk 0:01:26.3]} 21... Qc5 {[%clk 0:01:39.8]} 22. g3
{[%clk 0:01:24.8]} 22... Bf6 {[%clk 0:01:33.1]} 23. Nxf6+ {[%clk 0:01:18.3]}
23... gxf6 {[%clk 0:01:34]} 24. Nxg6 {[%clk 0:01:09.6]} 24... hxg6 {[%clk
0:01:34.9]} 25. Bf3 {[%clk 0:01:03.6]} 25... Bd5 {[%clk 0:01:28.6]} 26. b3
{[%clk 0:00:47.8]} 26... Qc6 {[%clk 0:01:23.2]} 27. Bxd5 {[%clk 0:00:45]} 27...
Rxd5 {[%clk 0:01:20.4]} 28. bxc4 {[%clk 0:00:43.9]} 28... bxc4 {[%clk
0:01:19.5]} 29. Ba3 {[%clk 0:00:39.5]} 29... Kg7 {[%clk 0:01:13.6]} 30. Qf3
{[%clk 0:00:26.6]} 30... Re8 {[%clk 0:01:02.7]} 31. Kg2 {[%clk 0:00:25.9]} 31...
Rh8 {[%clk 0:00:55.3]} 32. Be7 {[%clk 0:00:19.9]} 32... Rh2+ {[%clk 0:00:38.5]}
33. Kg1 {[%clk 0:00:19.3]} 33... Rhh5 {[%clk 0:00:22.2]} 34. Qxf6+ {[%clk
0:00:16.5]} 34... Kg8 {[%clk 0:00:22.2]} 35. Rab1 {[%clk 0:00:16]} 35... Rb5
{[%clk 0:00:19.6]} 36. f3 {[%clk 0:00:13]} 36... Rhf5 {[%clk 0:00:16.4]} 37. Qd4
{[%clk 0:00:12.1]} 37... Qxf3 {[%clk 0:00:12]} 38. Qe3 {[%clk 0:00:11.6]} 38...
Qxe3+ {[%clk 0:00:11.6]} 39. dxe3 {[%clk 0:00:10.4]} 39... Rxb1 {[%clk
0:00:12.5]} 40. Rxb1 {[%clk 0:00:10.8]} 40... Kg7 {[%clk 0:00:11.4]} 41. Rd1
{[%clk 0:00:10.3]} 41... Ra5 {[%clk 0:00:11]} 42. Ra1 {[%clk 0:00:06.6]} 42...
d2 {[%clk 0:00:10.8]} 43. Kf2 {[%clk 0:00:07.1]} 43... Rxa4 {[%clk 0:00:11.2]}
44. Rd1 {[%clk 0:00:07.2]} 44... Ra2 {[%clk 0:00:11.7]} 45. Ke2 {[%clk
0:00:06.9]} 45... Rc2 {[%clk 0:00:12.3]} 46. Bb4 {[%clk 0:00:06.7]} 46... Kf6
{[%clk 0:00:11.3]} 47. Rxd2 {[%clk 0:00:07.6]} 47... Rxd2+ {[%clk 0:00:11.7]}
48. Kxd2 {[%clk 0:00:08.5]} 48... Kf5 {[%clk 0:00:12.4]} 49. Bc5 {[%clk
0:00:08.3]} 49... Kg4 {[%clk 0:00:11.3]} 50. Bd6 {[%clk 0:00:08.3]} 50... Kf3
{[%clk 0:00:11.1]} 51. Bc7 {[%clk 0:00:06.5]} 51... a5 {[%clk 0:00:09.1]} 52.
Bxa5 {[%clk 0:00:06.3]} 52... Kxg3 {[%clk 0:00:09.5]} 53. Bc7+ {[%clk
0:00:07.1]} 53... Kf3 {[%clk 0:00:10]} 54. Bf4 {[%clk 0:00:04.6]} 54... f6
{[%clk 0:00:09.6]} 55. Bh6 {[%clk 0:00:05.1]} 55... g5 {[%clk 0:00:09.3]} 56.
Bg7 {[%clk 0:00:06]} 56... g4 {[%clk 0:00:09.7]} 57. Bxf6 {[%clk 0:00:06.1]}
57... g3 {[%clk 0:00:10.3]} 58. e4 {[%clk 0:00:06.2]} 58... Kf2 {[%clk
0:00:04.8]} 59. Bd4+ {[%clk 0:00:06.2]} 59... Kf1 {[%clk 0:00:05.3]} 60. Ke3
{[%clk 0:00:05.5]} 60... e5 {[%clk 0:00:04.8]} 61. Bc5 {[%clk 0:00:03.7]} 61...
g2 {[%clk 0:00:05.1]} 62. Kf3 {[%clk 0:00:04]} 62... g1=Q {[%clk 0:00:03.5]} 63.
Bxg1 {[%clk 0:00:04.1]} 63... Kxg1 {[%clk 0:00:04.4]} 64. Kg4 {[%clk 0:00:04.8]}
64... Kf2 {[%clk 0:00:05.2]} 65. Kf5 {[%clk 0:00:05.5]} 65... Ke3 {[%clk
0:00:05.9]} 66. Kxe5 {[%clk 0:00:06.4]} 66... Kd3 {[%clk 0:00:06.6]} 67. Kd5
{[%clk 0:00:06.9]} 67... Kxc3 {[%clk 0:00:07.5]} 68. e5 {[%clk 0:00:07.3]} 68...
Kb3 {[%clk 0:00:07.3]} 69. e6 {[%clk 0:00:08.2]} 69... c3 {[%clk 0:00:08.1]} 70.
e7 {[%clk 0:00:09.1]} 70... c2 {[%clk 0:00:09]} 71. e8=Q {[%clk 0:00:10]} 71...
c1=Q {[%clk 0:00:09.9]} 72. Qb5+ {[%clk 0:00:09.4]} 72... Kc2 {[%clk 0:00:10.2]}
73. Qc4+ {[%clk 0:00:08.2]} 73... Kb1 {[%clk 0:00:11.1]} 74. Qxc1+ {[%clk
0:00:07.5]} 74... Kxc1 {[%clk 0:00:12]} 1/2-1/2

[Event "Early-Titled-Tuesday-Blitz-October-10-2023"]
[Site "Chess.com"]
[Date "2023.10.10"]
[Round "5"]
[White "SALVA-DALI"]
[Black "Likvidator228"]
[Result "1-0"]
[WhiteElo "2750"]
[BlackElo "2577"]
[TimeControl "180+1"]
[EndTime "8:56:22 PDT"]
[Termination "SALVA-DALI won by resignation"]

1. e4 {[%clk 0:03:00.9]} 1... c5 {[%clk 0:02:59.2]} 2. Nc3 {[%clk 0:03:01.1]}
2... g6 {[%clk 0:02:57.4]} 3. g3 {[%clk 0:03:01.3]} 3... Bg7 {[%clk 0:02:57.5]}
4. Bg2 {[%clk 0:03:02.1]} 4... Nc6 {[%clk 0:02:57.5]} 5. f4 {[%clk 0:03:02.9]}
5... e6 {[%clk 0:02:57.6]} 6. e5 {[%clk 0:03:02.8]} 6... d6 {[%clk 0:02:46.7]}
7. exd6 {[%clk 0:03:02.9]} 7... Qxd6 {[%clk 0:02:46.4]} 8. Nf3 {[%clk
0:03:03.6]} 8... Nf6 {[%clk 0:02:39.1]} 9. O-O {[%clk 0:03:04.1]} 9... O-O
{[%clk 0:02:38.7]} 10. d3 {[%clk 0:03:04.8]} 10... Nd5 {[%clk 0:02:28.7]} 11.
Bd2 {[%clk 0:03:02.7]} 11... Nxc3 {[%clk 0:02:26.2]} 12. Bxc3 {[%clk 0:03:01.2]}
12... Nd4 {[%clk 0:02:19.9]} 13. Ne5 {[%clk 0:03:01.4]} 13... Rb8 {[%clk
0:02:16]} 14. a4 {[%clk 0:03:01.3]} 14... b6 {[%clk 0:02:10.8]} 15. Nc4 {[%clk
0:02:52.2]} 15... Qc7 {[%clk 0:02:05.4]} 16. Qd2 {[%clk 0:02:45.6]} 16... Bb7
{[%clk 0:02:03.8]} 17. Rae1 {[%clk 0:02:45]} 17... Bxg2 {[%clk 0:01:57.7]} 18.
Qxg2 {[%clk 0:02:45.4]} 18... a6 {[%clk 0:01:53.8]} 19. Kh1 {[%clk 0:02:38.2]}
19... b5 {[%clk 0:01:54.1]} 20. axb5 {[%clk 0:02:38.5]} 20... axb5 {[%clk
0:01:54.4]} 21. Ne5 {[%clk 0:02:39.2]} 21... Rbd8 {[%clk 0:01:45.2]} 22. Rf2
{[%clk 0:02:31.5]} 22... Rd5 {[%clk 0:01:31.7]} 23. Qe4 {[%clk 0:02:21]} 23...
Rfd8 {[%clk 0:01:24.3]} 24. Bxd4 {[%clk 0:02:18.7]} 24... cxd4 {[%clk
0:01:19.7]} 25. h4 {[%clk 0:02:05.2]} 25... h5 {[%clk 0:01:17.3]} 26. Ree2
{[%clk 0:02:01.2]} 26... Ra8 {[%clk 0:01:08.1]} 27. Kh2 {[%clk 0:01:59.6]} 27...
Ra1 {[%clk 0:01:07.8]} 28. Nf3 {[%clk 0:01:56.3]} 28... Rc1 {[%clk 0:01:02.5]}
29. Ng5 {[%clk 0:01:54.4]} 29... Qd7 {[%clk 0:00:46.9]} 30. Qf3 {[%clk
0:01:35.3]} 30... Bf6 {[%clk 0:00:40.2]} 31. Ne4 {[%clk 0:01:34.9]} 31... Be7
{[%clk 0:00:40.3]} 32. Rg2 {[%clk 0:01:30]} 32... Kf8 {[%clk 0:00:33.2]} 33.
Rgf2 {[%clk 0:01:22.8]} 33... Kg7 {[%clk 0:00:32.6]} 34. Ng5 {[%clk 0:01:22.9]}
34... Qc6 {[%clk 0:00:29.5]} 35. Qe4 {[%clk 0:01:16]} 35... Bf6 {[%clk
0:00:24.9]} 36. b4 {[%clk 0:01:02.6]} 36... Rd6 {[%clk 0:00:23.7]} 37. Nf3
{[%clk 0:00:48.7]} 37... Qxe4 {[%clk 0:00:16.8]} 38. dxe4 {[%clk 0:00:49.3]}
38... d3 {[%clk 0:00:17.3]} 39. cxd3 {[%clk 0:00:39.4]} 39... Rxd3 {[%clk
0:00:18.2]} 40. f5 {[%clk 0:00:40.1]} 40... exf5 {[%clk 0:00:17.3]} 41. exf5
{[%clk 0:00:38.8]} 41... Rcc3 {[%clk 0:00:17.3]} 42. Kg2 {[%clk 0:00:34.8]}
42... Bd4 {[%clk 0:00:15.8]} 43. Rf1 {[%clk 0:00:35.2]} 43... Bf6 {[%clk
0:00:14.8]} 44. fxg6 {[%clk 0:00:35]} 44... fxg6 {[%clk 0:00:15.7]} 45. Ra2
{[%clk 0:00:31.6]} 45... Rd7 {[%clk 0:00:15.3]} 46. Ra6 {[%clk 0:00:31.5]} 46...
Rc2+ {[%clk 0:00:15.5]} 47. Kh3 {[%clk 0:00:31.1]} 47... Rf7 {[%clk 0:00:14.1]}
48. Re1 {[%clk 0:00:27.6]} 48... Rc4 {[%clk 0:00:13.6]} 49. Ree6 {[%clk
0:00:26.9]} 49... Rxb4 {[%clk 0:00:13.6]} 50. Ng5 {[%clk 0:00:27.5]} 50... Bxg5
{[%clk 0:00:12.9]} 51. Rxg6+ {[%clk 0:00:28.2]} 51... Kf8 {[%clk 0:00:13.4]} 52.
Rxg5 {[%clk 0:00:29]} 52... Rb3 {[%clk 0:00:08.5]} 53. Rxh5 {[%clk 0:00:28.5]}
53... Rff3 {[%clk 0:00:09.1]} 54. Rg5 {[%clk 0:00:27.8]} 54... Ke7 {[%clk
0:00:09.7]} 55. h5 {[%clk 0:00:24.6]} 55... Rb1 {[%clk 0:00:08.2]} 56. h6 {[%clk
0:00:24.7]} 56... Rf7 {[%clk 0:00:06.3]} 57. Ra7+ {[%clk 0:00:23.5]} 57... Kf6
{[%clk 0:00:06.6]} 58. Rxf7+ {[%clk 0:00:20.2]} 58... Kxf7 {[%clk 0:00:04.1]}
59. Kg4 {[%clk 0:00:18.7]} 59... Rh1 {[%clk 0:00:03.3]} 60. Rxb5 {[%clk
0:00:08.1]} 60... Rxh6 {[%clk 0:00:03.2]} 61. Rb7+ {[%clk 0:00:08.4]} 61... Kg8
{[%clk 0:00:02.6]} 62. Kg5 {[%clk 0:00:08.5]} 62... Rc6 {[%clk 0:00:02.8]} 63.
g4 {[%clk 0:00:08.5]} 63... Rc5+ {[%clk 0:00:03]} 64. Kh6 {[%clk 0:00:07.7]}
64... Rc6+ {[%clk 0:00:03.1]} 65. Kh5 {[%clk 0:00:08.4]} 65... Kh8 {[%clk
0:00:03]} 66. g5 {[%clk 0:00:09.2]} 66... Kg8 {[%clk 0:00:03.5]} 67. Rd7 {[%clk
0:00:09.3]} 67... Rb6 {[%clk 0:00:03.6]} 68. Re7 {[%clk 0:00:09.5]} 68... Rc6
{[%clk 0:00:04]} 69. Re5 {[%clk 0:00:09.8]} 69... Kg7 {[%clk 0:00:03.9]} 70.
Re7+ {[%clk 0:00:09.9]} 70... Kg8 {[%clk 0:00:03.7]} 71. Rd7 {[%clk 0:00:10.8]}
71... Rb6 {[%clk 0:00:03.6]} 72. Rd4 {[%clk 0:00:10.2]} 72... Kg7 {[%clk
0:00:03.5]} 73. Rf4 {[%clk 0:00:10.4]} 73... Rc6 {[%clk 0:00:03.8]} 74. Ra4
{[%clk 0:00:09.9]} 74... Rb6 {[%clk 0:00:03.9]} 75. Rc4 {[%clk 0:00:10.5]} 75...
Ra6 {[%clk 0:00:03.9]} 76. Rc7+ {[%clk 0:00:11.1]} 76... Kg8 {[%clk 0:00:04]}
77. Kg4 {[%clk 0:00:12]} 77... Ra5 {[%clk 0:00:03.2]} 78. Rc6 {[%clk 0:00:10.9]}
78... Kg7 {[%clk 0:00:03.3]} 79. Kh5 {[%clk 0:00:11.4]} 79... Rb5 {[%clk
0:00:02.3]} 80. Rc7+ {[%clk 0:00:11.1]} 80... Kg8 {[%clk 0:00:02.9]} 81. Kh6
{[%clk 0:00:11.8]} 81... Rb1 {[%clk 0:00:03.1]} 82. Rc8+ {[%clk 0:00:10.5]}
82... Kf7 {[%clk 0:00:03.7]} 83. g6+ {[%clk 0:00:11.1]} 83... Kf6 {[%clk
0:00:04.2]} 84. Rf8+ {[%clk 0:00:11.3]} 84... Ke7 {[%clk 0:00:04.4]} 85. g7
{[%clk 0:00:10.7]} 85... Rh1+ {[%clk 0:00:04.8]} 86. Kg6 {[%clk 0:00:11.4]}
86... Rg1+ {[%clk 0:00:05.5]} 87. Kh7 {[%clk 0:00:12.2]} 87... Rh1+ {[%clk
0:00:05.8]} 88. Kg8 {[%clk 0:00:13]} 88... Rh2 {[%clk 0:00:05.3]} 89. Rf3 {[%clk
0:00:13.2]} 89... Ke8 {[%clk 0:00:05.7]} 90. Re3+ {[%clk 0:00:13.4]} 90... Kd7
{[%clk 0:00:06.1]} 91. Re4 {[%clk 0:00:12.8]} 91... Rh3 {[%clk 0:00:04.8]} 92.
Kf7 {[%clk 0:00:12.6]} 92... Rf3+ {[%clk 0:00:05.5]} 93. Kg6 {[%clk 0:00:13]}
93... Rg3+ {[%clk 0:00:06.1]} 94. Kf6 {[%clk 0:00:13.5]} 94... Rf3+ {[%clk
0:00:06.6]} 95. Kg5 {[%clk 0:00:13.7]} 95... Rg3+ {[%clk 0:00:07.1]} 96. Rg4
{[%clk 0:00:14]} 1-0

[Event "Early-Titled-Tuesday-Blitz-October-10-2023"]
[Site "Chess.com"]
[Date "2023.10.10"]
[Round "5"]
[White "djokovic74"]
[Black "HajiyevKanan"]
[Result "1-0"]
[WhiteElo "2750"]
[BlackElo "2585"]
[TimeControl "180+1"]
[EndTime "8:56:26 PDT"]
[Termination "djokovic74 won on time"]

1. c4 {[%clk 0:03:00.9]} 1... c6 {[%clk 0:03:00.9]} 2. Nf3 {[%clk 0:03:00.6]}
2... d5 {[%clk 0:03:01.6]} 3. g3 {[%clk 0:03:00.6]} 3... Nf6 {[%clk 0:03:02.2]}
4. Bg2 {[%clk 0:03:01.3]} 4... g6 {[%clk 0:03:02.7]} 5. b3 {[%clk 0:03:00.8]}
5... Bg7 {[%clk 0:03:03.2]} 6. Bb2 {[%clk 0:03:01.4]} 6... O-O {[%clk 0:03:04]}
7. O-O {[%clk 0:03:01.9]} 7... Bg4 {[%clk 0:03:04.5]} 8. d3 {[%clk 0:03:00]}
8... a5 {[%clk 0:03:03.8]} 9. Nbd2 {[%clk 0:02:55.4]} 9... Nbd7 {[%clk
0:03:03.7]} 10. h3 {[%clk 0:02:55.2]} 10... Bxf3 {[%clk 0:03:04.3]} 11. Nxf3
{[%clk 0:02:55.5]} 11... Re8 {[%clk 0:03:04.6]} 12. Rc1 {[%clk 0:02:48.7]} 12...
e5 {[%clk 0:03:03.8]} 13. cxd5 {[%clk 0:02:42.3]} 13... cxd5 {[%clk 0:03:04.7]}
14. d4 {[%clk 0:02:32.1]} 14... e4 {[%clk 0:03:04.8]} 15. Ne5 {[%clk 0:02:32.6]}
15... a4 {[%clk 0:03:03.2]} 16. bxa4 {[%clk 0:02:28.3]} 16... Qa5 {[%clk
0:02:56.1]} 17. Nxd7 {[%clk 0:01:56.5]} 17... Nxd7 {[%clk 0:02:55.9]} 18. Qb3
{[%clk 0:01:57.1]} 18... Nb6 {[%clk 0:02:48.7]} 19. Rc5 {[%clk 0:01:56.8]} 19...
Qa6 {[%clk 0:02:37.9]} 20. Rfc1 {[%clk 0:01:09.8]} 20... e3 {[%clk 0:01:59.1]}
21. fxe3 {[%clk 0:01:05.9]} 21... Nxa4 {[%clk 0:01:53.4]} 22. Rxd5 {[%clk
0:00:48.2]} 22... Qxe2 {[%clk 0:01:50.2]} 23. Rd7 {[%clk 0:00:47.4]} 23... Qxe3+
{[%clk 0:01:45.1]} 24. Qxe3 {[%clk 0:00:47.5]} 24... Rxe3 {[%clk 0:01:46]} 25.
Bxb7 {[%clk 0:00:38.1]} 25... Rb8 {[%clk 0:01:43.7]} 26. Ba1 {[%clk 0:00:31.7]}
26... Rxg3+ {[%clk 0:01:37.3]} 27. Kh2 {[%clk 0:00:28.1]} 27... Ra3 {[%clk
0:01:37.2]} 28. Bd5 {[%clk 0:00:26.6]} 28... Rf8 {[%clk 0:01:33]} 29. Rxf7
{[%clk 0:00:15.1]} 29... Rxf7 {[%clk 0:01:29.8]} 30. Rf1 {[%clk 0:00:15.3]}
30... Nc3 {[%clk 0:01:16.3]} 31. Bxf7+ {[%clk 0:00:06.2]} 31... Kh8 {[%clk
0:01:15.9]} 32. Bxc3 {[%clk 0:00:03]} 32... Rxc3 {[%clk 0:01:14.5]} 33. Rd1
{[%clk 0:00:03.8]} 33... Bf6 {[%clk 0:01:08.2]} 34. Bb3 {[%clk 0:00:03.9]} 34...
Kg7 {[%clk 0:01:05]} 35. d5 {[%clk 0:00:04.4]} 35... Be5+ {[%clk 0:00:59.7]} 36.
Kg2 {[%clk 0:00:03.6]} 36... Rg3+ {[%clk 0:00:58.2]} 37. Kf2 {[%clk 0:00:04.1]}
37... Bd6 {[%clk 0:00:46.7]} 38. Rc1 {[%clk 0:00:02.6]} 38... Rxh3 {[%clk
0:00:45.2]} 39. Rc6 {[%clk 0:00:03.3]} 39... Bf4 {[%clk 0:00:27.6]} 40. Bc4
{[%clk 0:00:03.8]} 40... g5 {[%clk 0:00:22.8]} 41. d6 {[%clk 0:00:04.2]} 41...
Kf6 {[%clk 0:00:19.9]} 42. d7+ {[%clk 0:00:02.3]} 42... Ke7 {[%clk 0:00:20.8]}
43. Be6 {[%clk 0:00:02.4]} 43... Rd3 {[%clk 0:00:12.6]} 44. Rc8 {[%clk
0:00:02.5]} 44... Rxd7 {[%clk 0:00:12.7]} 45. Bxd7 {[%clk 0:00:02.5]} 45... Kxd7
{[%clk 0:00:13.6]} 46. Rh8 {[%clk 0:00:03.2]} 46... Kc6 {[%clk 0:00:12.2]} 47.
Rxh7 {[%clk 0:00:03.7]} 47... Kb5 {[%clk 0:00:13.1]} 48. Ra7 {[%clk 0:00:02.6]}
48... Kb4 {[%clk 0:00:09.6]} 49. a4 {[%clk 0:00:02.4]} 49... Kc5 {[%clk
0:00:09]} 50. Ra8 {[%clk 0:00:02.8]} 50... Kb6 {[%clk 0:00:09.4]} 51. Kf3 {[%clk
0:00:03.5]} 51... Kb7 {[%clk 0:00:09.9]} 52. Rf8 {[%clk 0:00:03.7]} 52... Kb6
{[%clk 0:00:10.8]} 53. Rf5 {[%clk 0:00:04.4]} 53... Bc1 {[%clk 0:00:10]} 54.
Rb5+ {[%clk 0:00:04.9]} 54... Ka6 {[%clk 0:00:10]} 55. Rf5 {[%clk 0:00:03.4]}
55... Bf4 {[%clk 0:00:10.9]} 56. Ke2 {[%clk 0:00:02.9]} 56... Kb6 {[%clk
0:00:10.9]} 57. Kd3 {[%clk 0:00:03.3]} 57... Ka6 {[%clk 0:00:11.2]} 58. Kc4
{[%clk 0:00:03.8]} 58... Be3 {[%clk 0:00:10.7]} 59. Kb4 {[%clk 0:00:02.2]} 59...
Bd2+ {[%clk 0:00:10.7]} 60. Kc4 {[%clk 0:00:02.7]} 60... Be3 {[%clk 0:00:11.6]}
61. Kb3 {[%clk 0:00:01.9]} 61... Bd2 {[%clk 0:00:11.6]} 62. Rd5 {[%clk 0:00:02]}
62... Bf4 {[%clk 0:00:11.4]} 63. a5 {[%clk 0:00:02.6]} 63... Bd2 {[%clk
0:00:11.1]} 64. Ka4 {[%clk 0:00:03.2]} 64... Bf4 {[%clk 0:00:08.4]} 65. Rf5
{[%clk 0:00:03.4]} 65... Be3 {[%clk 0:00:07.9]} 66. Rf6+ {[%clk 0:00:03.5]}
66... Kb7 {[%clk 0:00:08.6]} 67. Rg6 {[%clk 0:00:04.4]} 67... Ka7 {[%clk
0:00:07.6]} 68. Kb5 {[%clk 0:00:05.3]} 68... Kb7 {[%clk 0:00:08.2]} 69. a6+
{[%clk 0:00:06]} 69... Ka7 {[%clk 0:00:08.9]} 70. Rg7+ {[%clk 0:00:06.6]} 70...
Ka8 {[%clk 0:00:09.5]} 71. Kc6 {[%clk 0:00:07.1]} 71... Bf4 {[%clk 0:00:07.7]}
72. Kd5 {[%clk 0:00:07.6]} 72... Be3 {[%clk 0:00:07.7]} 73. Ke4 {[%clk 0:00:07]}
73... Bf4 {[%clk 0:00:08.1]} 74. Kd3 {[%clk 0:00:07.4]} 74... Kb8 {[%clk
0:00:08.6]} 75. Kc4 {[%clk 0:00:07.7]} 75... Ka8 {[%clk 0:00:09.3]} 76. Kb5
{[%clk 0:00:08.2]} 76... Be3 {[%clk 0:00:09.7]} 77. Kc6 {[%clk 0:00:05.3]} 77...
Bf4 {[%clk 0:00:09.6]} 78. Kc5 {[%clk 0:00:04.9]} 78... Be3+ {[%clk 0:00:09.4]}
79. Kc4 {[%clk 0:00:05.2]} 79... Bf4 {[%clk 0:00:09.4]} 80. Kb4 {[%clk
0:00:05.6]} 80... Kb8 {[%clk 0:00:09.9]} 81. a7+ {[%clk 0:00:04.7]} 81... Ka8
{[%clk 0:00:10.1]} 82. Kb5 {[%clk 0:00:05.4]} 82... Be5 {[%clk 0:00:06.1]} 83.
Rf7 {[%clk 0:00:04.8]} 83... Bd6 {[%clk 0:00:03.2]} 84. Ka6 {[%clk 0:00:05.2]}
84... g4 {[%clk 0:00:01.9]} 85. Rg7 {[%clk 0:00:05.5]} 85... Bg3 {[%clk
0:00:01.8]} 86. Rg8+ {[%clk 0:00:05.9]} 1-0